[Event "Early-Titled-Tuesday-Blitz-February-06-2024"]
[Site "Chess.com"]
[Date "2024.02.06"]
[Round "2"]
[White "SharapovEvgeny"]
[Black "blitzking1729"]
[Result "1/2-1/2"]
[WhiteElo "2538"]
[BlackElo "2732"]
[TimeControl "180+1"]
[EndTime "8:16:31 PST"]
[Termination "Game drawn by repetition"]

1. e4 {[%clk 0:03:00.2]} 1... d6 {[%clk 0:02:57.1]} 2. d4 {[%clk 0:02:59.9]}
2... Nf6 {[%clk 0:02:57.1]} 3. Nc3 {[%clk 0:03:00]} 3... e5 {[%clk 0:02:56.8]}
4. Nf3 {[%clk 0:02:59.7]} 4... Nbd7 {[%clk 0:02:56.6]} 5. Bc4 {[%clk 0:02:59.1]}
5... Be7 {[%clk 0:02:56.3]} 6. O-O {[%clk 0:02:58.7]} 6... O-O {[%clk
0:02:56.1]} 7. Re1 {[%clk 0:02:58.7]} 7... c6 {[%clk 0:02:56.6]} 8. a4 {[%clk
0:02:58.7]} 8... h6 {[%clk 0:02:55]} 9. h3 {[%clk 0:02:57]} 9... Re8 {[%clk
0:02:55.3]} 10. b3 {[%clk 0:02:56.7]} 10... Bf8 {[%clk 0:02:54.4]} 11. Bb2
{[%clk 0:02:56.8]} 11... exd4 {[%clk 0:02:49.2]} 12. Qxd4 {[%clk 0:02:55.2]}
12... Qb6 {[%clk 0:02:44.1]} 13. Qxb6 {[%clk 0:02:53.2]} 13... Nxb6 {[%clk
0:02:43.5]} 14. Bf1 {[%clk 0:02:52.7]} 14... d5 {[%clk 0:02:43.1]} 15. exd5
{[%clk 0:02:52.2]} 15... Rxe1 {[%clk 0:02:38.1]} 16. Rxe1 {[%clk 0:02:50.6]}
16... Nbxd5 {[%clk 0:02:35.8]} 17. Nxd5 {[%clk 0:02:50.6]} 17... Nxd5 {[%clk
0:02:36.6]} 18. Re8 {[%clk 0:02:47.9]} 18... Nc7 {[%clk 0:02:36.7]} 19. Rd8
{[%clk 0:02:44.2]} 19... Ne6 {[%clk 0:02:27.2]} 20. Re8 {[%clk 0:02:40.4]} 20...
Nc7 {[%clk 0:02:08.5]} 21. Rd8 {[%clk 0:02:39.6]} 21... Bf5 {[%clk 0:02:09.1]}
22. Rxa8 {[%clk 0:02:36.9]} 22... Nxa8 {[%clk 0:02:10]} 23. Bd3 {[%clk
0:02:33.3]} 23... Bxd3 {[%clk 0:02:09.6]} 24. cxd3 {[%clk 0:02:33.2]} 24... Nc7
{[%clk 0:02:07.5]} 25. Kf1 {[%clk 0:02:30.9]} 25... f6 {[%clk 0:02:03.8]} 26.
Ke2 {[%clk 0:02:30.1]} 26... Ne6 {[%clk 0:02:02.8]} 27. Nd4 {[%clk 0:02:22]}
27... Nf4+ {[%clk 0:02:02.1]} 28. Ke3 {[%clk 0:02:13]} 28... Nxg2+ {[%clk
0:01:59.6]} 29. Kf3 {[%clk 0:02:13.1]} 29... Nh4+ {[%clk 0:01:57.7]} 30. Kg4
{[%clk 0:02:13.2]} 30... Ng6 {[%clk 0:01:54.9]} 31. Ne6 {[%clk 0:02:10.7]} 31...
Be7 {[%clk 0:01:47.7]} 32. f4 {[%clk 0:02:01.9]} 32... Kf7 {[%clk 0:01:41.8]}
33. f5 {[%clk 0:02:02]} 33... Nf8 {[%clk 0:01:40]} 34. Nxf8 {[%clk 0:02:01.1]}
34... Bxf8 {[%clk 0:01:40.1]} 35. Kh5 {[%clk 0:01:59.6]} 35... Bb4 {[%clk
0:01:34.1]} 36. Bd4 {[%clk 0:01:58.7]} 36... a6 {[%clk 0:01:15.4]} 37. Be3
{[%clk 0:01:58.5]} 37... b5 {[%clk 0:01:14.8]} 38. Bf4 {[%clk 0:01:58.2]} 38...
Be1 {[%clk 0:01:08.1]} 39. Bd6 {[%clk 0:01:56.8]} 39... Bd2 {[%clk 0:01:07.8]}
40. Bc5 {[%clk 0:01:55.2]} 40... Bf4 {[%clk 0:01:07.3]} 41. Bb4 {[%clk
0:01:54.3]} 41... Be3 {[%clk 0:01:05]} 42. Bd6 {[%clk 0:01:53.9]} 42... Bd4
{[%clk 0:01:05.4]} 43. Bb4 {[%clk 0:01:52.1]} 43... c5 {[%clk 0:01:05.7]} 44.
Bd2 {[%clk 0:01:48]} 44... Be5 {[%clk 0:00:49.9]} 45. Be3 {[%clk 0:01:46.7]}
45... Bd6 {[%clk 0:00:50.5]} 46. axb5 {[%clk 0:01:45.6]} 46... axb5 {[%clk
0:00:50.5]} 47. Bf2 {[%clk 0:01:45.1]} 47... Bf8 {[%clk 0:00:44]} 48. Be3 {[%clk
0:01:45]} 48... Be7 {[%clk 0:00:42.4]} 49. Bf2 {[%clk 0:01:45.1]} 49... Bd6
{[%clk 0:00:32.2]} 50. Be3 {[%clk 0:01:45.1]} 50... Bf8 {[%clk 0:00:21.2]} 51.
Bf2 {[%clk 0:01:44.9]} 51... Be7 {[%clk 0:00:20.7]} 52. Be3 {[%clk 0:01:45.1]}
52... Bd6 {[%clk 0:00:21.4]} 53. Bf2 {[%clk 0:01:45.1]} 53... Bf8 {[%clk
0:00:19.4]} 54. Be3 {[%clk 0:01:45.3]} 54... Be7 {[%clk 0:00:19.9]} 55. Bf2
{[%clk 0:01:45.6]} 55... Bf8 {[%clk 0:00:20.6]} 1/2-1/2

[Event "Early-Titled-Tuesday-Blitz-February-06-2024"]
[Site "Chess.com"]
[Date "2024.02.06"]
[Round "2"]
[White "traviscottofficial"]
[Black "EvgenyBurmakin"]
[Result "1-0"]
[WhiteElo "2706"]
[BlackElo "2438"]
[TimeControl "180+1"]
[EndTime "8:16:31 PST"]
[Termination "traviscottofficial won by resignation"]

1. Nf3 {[%clk 0:02:59.6]} 1... Nf6 {[%clk 0:02:59.7]} 2. g3 {[%clk 0:03:00]}
2... g6 {[%clk 0:03:00]} 3. Bg2 {[%clk 0:03:00.6]} 3... Bg7 {[%clk 0:03:00.6]}
4. O-O {[%clk 0:03:01.4]} 4... O-O {[%clk 0:03:00.9]} 5. c4 {[%clk 0:03:01.7]}
5... d6 {[%clk 0:03:00]} 6. Nc3 {[%clk 0:03:00.8]} 6... e5 {[%clk 0:02:59.5]} 7.
b3 {[%clk 0:03:00]} 7... Nc6 {[%clk 0:02:57.2]} 8. Bb2 {[%clk 0:03:00.2]} 8...
h6 {[%clk 0:02:52]} 9. e3 {[%clk 0:02:58.9]} 9... Bf5 {[%clk 0:02:48]} 10. d4
{[%clk 0:02:58]} 10... exd4 {[%clk 0:02:40.2]} 11. Nxd4 {[%clk 0:02:57.6]} 11...
Nxd4 {[%clk 0:02:37]} 12. exd4 {[%clk 0:02:57.4]} 12... c6 {[%clk 0:02:37.2]}
13. d5 {[%clk 0:02:49.9]} 13... c5 {[%clk 0:02:33.2]} 14. Qd2 {[%clk 0:02:47]}
14... Re8 {[%clk 0:02:29]} 15. Rfe1 {[%clk 0:02:46.5]} 15... Qd7 {[%clk
0:02:29.3]} 16. f3 {[%clk 0:02:42.3]} 16... a6 {[%clk 0:02:21.6]} 17. g4 {[%clk
0:02:38.1]} 17... Nxg4 {[%clk 0:02:01.3]} 18. fxg4 {[%clk 0:02:37.7]} 18... Bxg4
{[%clk 0:01:58.6]} 19. Ne4 {[%clk 0:02:34.5]} 19... Re5 {[%clk 0:01:00.3]} 20.
Nf2 {[%clk 0:02:21.8]} 20... Rae8 {[%clk 0:00:38.6]} 21. Rxe5 {[%clk 0:02:21.4]}
21... Bxe5 {[%clk 0:00:35.5]} 22. Bxe5 {[%clk 0:02:09.9]} 22... Rxe5 {[%clk
0:00:36.4]} 23. Re1 {[%clk 0:02:08.4]} 23... Rxe1+ {[%clk 0:00:24.8]} 24. Qxe1
{[%clk 0:02:08.2]} 24... Bf5 {[%clk 0:00:24.6]} 25. Qe3 {[%clk 0:02:02.4]} 25...
Kg7 {[%clk 0:00:23.6]} 26. Be4 {[%clk 0:01:44.6]} 26... Bg4 {[%clk 0:00:20.3]}
27. Qf4 {[%clk 0:01:42.2]} 27... Be2 {[%clk 0:00:18]} 28. Bg2 {[%clk 0:01:40.5]}
28... Qe7 {[%clk 0:00:16.1]} 29. Ne4 {[%clk 0:01:40.1]} 29... b5 {[%clk
0:00:13.7]} 30. Qxd6 {[%clk 0:01:39.6]} 30... Qh4 {[%clk 0:00:12.7]} 31. Qe5+
{[%clk 0:01:39.7]} 31... Kf8 {[%clk 0:00:10]} 32. Qg3 {[%clk 0:01:37.9]} 32...
Qh5 {[%clk 0:00:08.5]} 33. d6 {[%clk 0:01:27]} 33... bxc4 {[%clk 0:00:08.6]} 34.
d7 {[%clk 0:01:26.7]} 34... Ke7 {[%clk 0:00:08.9]} 35. Qc7 {[%clk 0:01:20.4]}
1-0

[Event "Early-Titled-Tuesday-Blitz-February-06-2024"]
[Site "Chess.com"]
[Date "2024.02.06"]
[Round "2"]
[White "Aariow"]
[Black "ValiantCeleb"]
[Result "1-0"]
[WhiteElo "2500"]
[BlackElo "2272"]
[TimeControl "180+1"]
[EndTime "8:16:35 PST"]
[Termination "Aariow won on time"]

1. d4 {[%clk 0:03:00.9]} 1... d5 {[%clk 0:02:58.9]} 2. c4 {[%clk 0:03:01.4]}
2... e6 {[%clk 0:02:59.3]} 3. Nc3 {[%clk 0:03:01.9]} 3... Bb4 {[%clk 0:02:59.1]}
4. Nf3 {[%clk 0:03:00.5]} 4... Nf6 {[%clk 0:02:59.1]} 5. cxd5 {[%clk 0:02:58.4]}
5... exd5 {[%clk 0:02:58.9]} 6. Bg5 {[%clk 0:02:58.1]} 6... h6 {[%clk
0:02:58.1]} 7. Bh4 {[%clk 0:02:54.4]} 7... O-O {[%clk 0:02:52.7]} 8. e3 {[%clk
0:02:54.5]} 8... c6 {[%clk 0:02:49.7]} 9. Bd3 {[%clk 0:02:54.5]} 9... Nbd7
{[%clk 0:02:44.8]} 10. O-O {[%clk 0:02:54.2]} 10... Re8 {[%clk 0:02:34.7]} 11.
Qc2 {[%clk 0:02:54.2]} 11... a5 {[%clk 0:02:16.7]} 12. a3 {[%clk 0:02:54]} 12...
Be7 {[%clk 0:02:08.1]} 13. Bg3 {[%clk 0:02:54.4]} 13... Nf8 {[%clk 0:02:03.9]}
14. Rab1 {[%clk 0:02:37.3]} 14... Nh5 {[%clk 0:01:42.4]} 15. Be5 {[%clk
0:02:36.4]} 15... Bg4 {[%clk 0:01:34.8]} 16. Nd2 {[%clk 0:02:25.3]} 16... c5
{[%clk 0:01:08.2]} 17. Bf5 {[%clk 0:02:15.9]} 17... Bxf5 {[%clk 0:00:57.6]} 18.
Qxf5 {[%clk 0:02:16.8]} 18... Nf6 {[%clk 0:00:42.6]} 19. dxc5 {[%clk 0:01:57.4]}
19... Qd7 {[%clk 0:00:18.6]} 20. Qf3 {[%clk 0:01:48]} 20... Rad8 {[%clk
0:00:15.8]} 21. b4 {[%clk 0:01:42.2]} 21... axb4 {[%clk 0:00:15.8]} 22. axb4
{[%clk 0:01:42.6]} 22... Ne6 {[%clk 0:00:15.7]} 23. Nb3 {[%clk 0:01:39.8]} 23...
Qc8 {[%clk 0:00:08.3]} 24. Rfd1 {[%clk 0:01:36.9]} 24... Nd7 {[%clk 0:00:06]}
25. Bg3 {[%clk 0:01:29.7]} 25... Nf6 {[%clk 0:00:04.6]} 26. Nxd5 {[%clk
0:01:27.8]} 26... Nxd5 {[%clk 0:00:04.7]} 27. Rxd5 {[%clk 0:01:28.7]} 27... Ng5
{[%clk 0:00:04.8]} 28. Qd1 {[%clk 0:01:25.6]} 28... Rxd5 {[%clk 0:00:03.5]} 29.
Qxd5 {[%clk 0:01:26.5]} 29... Rd8 {[%clk 0:00:03.8]} 30. Qe5 {[%clk 0:01:27]}
30... Bf6 {[%clk 0:00:03.8]} 31. Qc7 {[%clk 0:01:26.5]} 31... Qa8 {[%clk
0:00:02.9]} 32. Nd4 {[%clk 0:01:16.2]} 32... Qa2 {[%clk 0:00:02.6]} 33. Rf1
{[%clk 0:01:12.9]} 33... Qc4 {[%clk 0:00:02]} 34. b5 {[%clk 0:01:11.3]} 1-0

[Event "Early-Titled-Tuesday-Blitz-February-06-2024"]
[Site "Chess.com"]
[Date "2024.02.06"]
[Round "2"]
[White "tusplingher"]
[Black "agvania123"]
[Result "0-1"]
[WhiteElo "2459"]
[BlackElo "2275"]
[TimeControl "180+1"]
[EndTime "8:16:37 PST"]
[Termination "agvania123 won by checkmate"]

1. e4 {[%clk 0:03:00.9]} 1... d5 {[%clk 0:03:00]} 2. exd5 {[%clk 0:02:59.6]}
2... Qxd5 {[%clk 0:03:00.9]} 3. Nc3 {[%clk 0:02:59.6]} 3... Qd8 {[%clk
0:03:01.4]} 4. d4 {[%clk 0:02:59.9]} 4... Nf6 {[%clk 0:03:01.4]} 5. Nf3 {[%clk
0:03:00.3]} 5... Bg4 {[%clk 0:03:01.2]} 6. Be2 {[%clk 0:02:58.5]} 6... e6 {[%clk
0:03:00.7]} 7. h3 {[%clk 0:02:58.4]} 7... Bh5 {[%clk 0:02:58.3]} 8. Be3 {[%clk
0:02:57.7]} 8... c6 {[%clk 0:02:56]} 9. O-O {[%clk 0:02:57.3]} 9... Nbd7 {[%clk
0:02:55.6]} 10. Qd2 {[%clk 0:02:57.4]} 10... Be7 {[%clk 0:02:52.2]} 11. Rad1
{[%clk 0:02:57]} 11... O-O {[%clk 0:02:51.9]} 12. Rfe1 {[%clk 0:02:53.7]} 12...
Nd5 {[%clk 0:02:49.7]} 13. Nxd5 {[%clk 0:02:53.2]} 13... cxd5 {[%clk 0:02:45.9]}
14. c3 {[%clk 0:02:53.2]} 14... Bd6 {[%clk 0:02:38.1]} 15. Bf4 {[%clk
0:02:52.7]} 15... Bxf4 {[%clk 0:02:35.6]} 16. Qxf4 {[%clk 0:02:53]} 16... Qb8
{[%clk 0:02:33.1]} 17. Qh4 {[%clk 0:02:47.5]} 17... Bg6 {[%clk 0:02:32]} 18. Bd3
{[%clk 0:02:41.1]} 18... Bxd3 {[%clk 0:02:31]} 19. Rxd3 {[%clk 0:02:42]} 19...
b5 {[%clk 0:02:29.7]} 20. Ne5 {[%clk 0:02:25.6]} 20... Nxe5 {[%clk 0:02:18.8]}
21. Rxe5 {[%clk 0:02:25.4]} 21... b4 {[%clk 0:02:19.4]} 22. Rg3 {[%clk
0:02:18.7]} 22... Qd8 {[%clk 0:01:59.8]} 23. Reg5 {[%clk 0:02:03.5]} 23... g6
{[%clk 0:01:54.7]} 24. Qh6 {[%clk 0:02:01.1]} 24... Qf6 {[%clk 0:01:52.2]} 25.
Rh5 {[%clk 0:01:43.9]} 25... Qg7 {[%clk 0:01:51.3]} 26. Qxg7+ {[%clk 0:01:13.6]}
26... Kxg7 {[%clk 0:01:52.2]} 27. cxb4 {[%clk 0:01:09.1]} 27... Rfb8 {[%clk
0:01:52.6]} 28. a3 {[%clk 0:01:09]} 28... a5 {[%clk 0:01:52.5]} 29. bxa5 {[%clk
0:01:05.2]} 29... Rxb2 {[%clk 0:01:50.7]} 30. Re5 {[%clk 0:01:01.1]} 30... Rxa5
{[%clk 0:01:49.6]} 31. Ree3 {[%clk 0:01:01.1]} 31... Ra4 {[%clk 0:01:48.7]} 32.
Rd3 {[%clk 0:01:01.4]} 32... Rc2 {[%clk 0:01:48.1]} 33. Rgf3 {[%clk 0:00:55.5]}
33... Rcc4 {[%clk 0:01:41]} 34. Rb3 {[%clk 0:00:53.7]} 34... Rxd4 {[%clk
0:01:39.4]} 35. Rb7 {[%clk 0:00:53.7]} 35... Rf4 {[%clk 0:01:40.1]} 36. Rc3
{[%clk 0:00:53.1]} 36... Rac4 {[%clk 0:01:37.8]} 37. Re3 {[%clk 0:00:48.2]}
37... Rc1+ {[%clk 0:01:37.3]} 38. Kh2 {[%clk 0:00:47.9]} 38... Rxf2 {[%clk
0:01:32.2]} 39. Kg3 {[%clk 0:00:43.6]} 39... Rcc2 {[%clk 0:01:29.8]} 40. Kh4
{[%clk 0:00:40.1]} 40... Rxg2 {[%clk 0:01:23.8]} 41. Rb4 {[%clk 0:00:30.1]}
41... Kh6 {[%clk 0:01:11.5]} 42. Rg4 {[%clk 0:00:25.6]} 42... g5+ {[%clk
0:01:09.6]} 43. Rxg5 {[%clk 0:00:24.2]} 43... Rxg5 {[%clk 0:01:07.2]} 44. Rf3
{[%clk 0:00:24.8]} 44... Rc4+ {[%clk 0:01:06.7]} 45. Rf4 {[%clk 0:00:24.8]}
45... Rxf4# {[%clk 0:01:07.2]} 0-1

[Event "Early-Titled-Tuesday-Blitz-February-06-2024"]
[Site "Chess.com"]
[Date "2024.02.06"]
[Round "2"]
[White "manitodeplomo"]
[Black "ValentunHulka"]
[Result "0-1"]
[WhiteElo "2570"]
[BlackElo "2824"]
[TimeControl "180+1"]
[EndTime "8:16:40 PST"]
[Termination "ValentunHulka won on time"]

1. d4 {[%clk 0:02:06.8]} 1... d5 {[%clk 0:02:58.4]} 2. c4 {[%clk 0:02:01.6]}
2... e6 {[%clk 0:02:59]} 3. Nf3 {[%clk 0:02:00.7]} 3... Nf6 {[%clk 0:02:58.6]}
4. Bg5 {[%clk 0:01:55.4]} 4... dxc4 {[%clk 0:02:56.7]} 5. Qa4+ {[%clk 0:01:37]}
5... Nbd7 {[%clk 0:02:44.9]} 6. Qxc4 {[%clk 0:01:36.4]} 6... a6 {[%clk 0:02:44]}
7. Nc3 {[%clk 0:01:24.3]} 7... b5 {[%clk 0:02:37.3]} 8. Qb3 {[%clk 0:01:23.6]}
8... c5 {[%clk 0:02:36.9]} 9. Rd1 {[%clk 0:01:21.7]} 9... c4 {[%clk 0:02:12.1]}
10. Qc2 {[%clk 0:01:16.3]} 10... Bb7 {[%clk 0:02:12.6]} 11. a3 {[%clk
0:01:08.1]} 11... h6 {[%clk 0:02:10.3]} 12. Bxf6 {[%clk 0:00:59.7]} 12... Nxf6
{[%clk 0:02:11.2]} 13. e4 {[%clk 0:00:59]} 13... Be7 {[%clk 0:02:09.7]} 14. g3
{[%clk 0:00:57.1]} 14... Qa5 {[%clk 0:02:03.6]} 15. Rd2 {[%clk 0:00:19.6]} 15...
b4 {[%clk 0:01:46.9]} 16. axb4 {[%clk 0:00:20.5]} 16... Bxb4 {[%clk 0:01:47.7]}
17. d5 {[%clk 0:00:16.4]} 17... exd5 {[%clk 0:01:43.5]} 18. e5 {[%clk
0:00:15.6]} 18... Ne4 {[%clk 0:01:41.5]} 19. Nd4 {[%clk 0:00:08.3]} 19... Nxc3
{[%clk 0:01:37.5]} 20. bxc3 {[%clk 0:00:07.4]} 20... Bxc3 {[%clk 0:01:38.4]} 21.
Bg2 {[%clk 0:00:07]} 21... Bxd4 {[%clk 0:01:30.1]} 22. O-O {[%clk 0:00:05.4]}
22... Bc3 {[%clk 0:01:26.9]} 23. Re2 {[%clk 0:00:02.4]} 23... O-O {[%clk
0:01:25.7]} 24. e6 {[%clk 0:00:02.7]} 24... fxe6 {[%clk 0:01:24.1]} 25. Rxe6
{[%clk 0:00:03.6]} 25... Rae8 {[%clk 0:01:24.6]} 26. Qg6 {[%clk 0:00:03.1]}
26... Rxe6 {[%clk 0:01:18.2]} 27. Qxe6+ {[%clk 0:00:04]} 27... Kh8 {[%clk
0:01:18.9]} 28. Rb1 {[%clk 0:00:04.2]} 28... Bc8 {[%clk 0:01:10]} 29. Qd6 {[%clk
0:00:02.7]} 29... Qd8 {[%clk 0:01:09.5]} 30. Qc5 {[%clk 0:00:02]} 30... Bf6
{[%clk 0:01:05]} 31. Rb8 {[%clk 0:00:02.1]} 31... c3 {[%clk 0:01:04.3]} 32. Bh3
{[%clk 0:00:02.3]} 32... Bxh3 {[%clk 0:01:03.4]} 0-1

[Event "Early-Titled-Tuesday-Blitz-February-06-2024"]
[Site "Chess.com"]
[Date "2024.02.06"]
[Round "2"]
[White "picturesquecheck"]
[Black "Evgeny81"]
[Result "0-1"]
[WhiteElo "2382"]
[BlackElo "2717"]
[TimeControl "180+1"]
[EndTime "8:16:42 PST"]
[Termination "Evgeny81 won by resignation"]

1. e4 {[%clk 0:03:00.9]} 1... c5 {[%clk 0:02:58.2]} 2. Nf3 {[%clk 0:02:58.9]}
2... d6 {[%clk 0:02:57.3]} 3. d4 {[%clk 0:02:58.4]} 3... cxd4 {[%clk 0:02:58.2]}
4. Nxd4 {[%clk 0:02:57.6]} 4... Nf6 {[%clk 0:02:58.7]} 5. Nc3 {[%clk 0:02:57.9]}
5... g6 {[%clk 0:02:58.9]} 6. Be3 {[%clk 0:02:57.4]} 6... Bg7 {[%clk 0:02:59.1]}
7. f3 {[%clk 0:02:55.7]} 7... Nc6 {[%clk 0:02:59.5]} 8. Qd2 {[%clk 0:02:55.5]}
8... h5 {[%clk 0:02:58.5]} 9. Bc4 {[%clk 0:02:54]} 9... Bd7 {[%clk 0:02:58.1]}
10. O-O-O {[%clk 0:02:53]} 10... Rc8 {[%clk 0:02:58.2]} 11. Bb3 {[%clk
0:02:52.7]} 11... Ne5 {[%clk 0:02:58.1]} 12. h3 {[%clk 0:02:47.3]} 12... Nc4
{[%clk 0:02:56.8]} 13. Bxc4 {[%clk 0:02:46.9]} 13... Rxc4 {[%clk 0:02:57.7]} 14.
g4 {[%clk 0:02:46.6]} 14... O-O {[%clk 0:02:51.4]} 15. b3 {[%clk 0:02:40.1]}
15... Rc8 {[%clk 0:02:45.8]} 16. Nd5 {[%clk 0:02:40.3]} 16... Nxd5 {[%clk
0:02:40.1]} 17. exd5 {[%clk 0:02:41.2]} 17... h4 {[%clk 0:02:40.6]} 18. Kb1
{[%clk 0:02:28.6]} 18... b5 {[%clk 0:02:24.6]} 19. Bh6 {[%clk 0:02:16.2]} 19...
Qc7 {[%clk 0:02:08.8]} 20. Bxg7 {[%clk 0:02:12.2]} 20... Kxg7 {[%clk 0:02:09.7]}
21. Rhg1 {[%clk 0:02:09.1]} 21... Qc3 {[%clk 0:02:04.4]} 22. Qe2 {[%clk
0:01:48]} 22... Rfe8 {[%clk 0:01:38.6]} 23. Rd3 {[%clk 0:01:38.7]} 23... Qc5
{[%clk 0:01:27.8]} 24. Rf1 {[%clk 0:01:16.5]} 24... a5 {[%clk 0:01:14.5]} 25.
Qd2 {[%clk 0:00:44.8]} 25... a4 {[%clk 0:01:11.8]} 26. Qg5 {[%clk 0:00:40.7]}
26... axb3 {[%clk 0:01:07.6]} 27. cxb3 {[%clk 0:00:32.7]} 27... e5 {[%clk
0:01:02.3]} 28. Nc6 {[%clk 0:00:05.2]} 28... Bxc6 {[%clk 0:00:55.6]} 29. dxc6
{[%clk 0:00:06.1]} 29... Rxc6 {[%clk 0:00:55.8]} 30. Rfd1 {[%clk 0:00:06.3]}
30... Qc2+ {[%clk 0:00:52.1]} 31. Ka1 {[%clk 0:00:06.1]} 31... Ra8 {[%clk
0:00:52.9]} 0-1

[Event "Early-Titled-Tuesday-Blitz-February-06-2024"]
[Site "Chess.com"]
[Date "2024.02.06"]
[Round "2"]
[White "Ural_bogatyr"]
[Black "AndresDelgado77"]
[Result "1-0"]
[WhiteElo "2535"]
[BlackElo "2341"]
[TimeControl "180+1"]
[EndTime "8:16:42 PST"]
[Termination "Ural_bogatyr won on time"]

1. d4 {[%clk 0:02:54.1]} 1... Nf6 {[%clk 0:02:58.5]} 2. Nc3 {[%clk 0:02:52.2]}
2... e6 {[%clk 0:02:57.8]} 3. e4 {[%clk 0:02:51.8]} 3... d5 {[%clk 0:02:57.2]}
4. Bg5 {[%clk 0:02:51.1]} 4... Bb4 {[%clk 0:02:56.8]} 5. e5 {[%clk 0:02:50.7]}
5... h6 {[%clk 0:02:56.7]} 6. Bd2 {[%clk 0:02:50.7]} 6... Bxc3 {[%clk
0:02:56.4]} 7. bxc3 {[%clk 0:02:50.1]} 7... Ne4 {[%clk 0:02:56.3]} 8. Bc1 {[%clk
0:02:50.7]} 8... c5 {[%clk 0:02:55.2]} 9. Ne2 {[%clk 0:02:50.1]} 9... Qa5 {[%clk
0:02:52]} 10. f3 {[%clk 0:02:48]} 10... cxd4 {[%clk 0:02:45]} 11. fxe4 {[%clk
0:02:46.9]} 11... dxc3 {[%clk 0:02:39.2]} 12. exd5 {[%clk 0:02:34.9]} 12... exd5
{[%clk 0:02:38.3]} 13. Nd4 {[%clk 0:02:34.7]} 13... Nc6 {[%clk 0:02:35.2]} 14.
Nxc6 {[%clk 0:02:33.5]} 14... bxc6 {[%clk 0:02:35.1]} 15. Bd3 {[%clk 0:02:34.1]}
15... O-O {[%clk 0:02:23.1]} 16. O-O {[%clk 0:02:31.9]} 16... c5 {[%clk
0:02:22]} 17. Qh5 {[%clk 0:02:25.9]} 17... c4 {[%clk 0:02:03]} 18. Bf5 {[%clk
0:02:22.3]} 18... g6 {[%clk 0:01:49.9]} 19. Bxg6 {[%clk 0:02:21.4]} 19... Qb6+
{[%clk 0:01:49.4]} 20. Kh1 {[%clk 0:01:32.7]} 20... Qxg6 {[%clk 0:01:48.1]} 21.
Qh4 {[%clk 0:01:29.9]} 21... Bf5 {[%clk 0:01:33.7]} 22. Bxh6 {[%clk 0:01:23.1]}
22... Be4 {[%clk 0:01:28.8]} 23. Qh3 {[%clk 0:01:13]} 23... Rfe8 {[%clk
0:01:06.2]} 24. Rf4 {[%clk 0:01:03.5]} 24... f5 {[%clk 0:00:13.2]} 25. exf6
{[%clk 0:00:59.5]} 25... Kf7 {[%clk 0:00:08.7]} 26. Qd7+ {[%clk 0:00:53.4]}
26... Kg8 {[%clk 0:00:03.8]} 27. f7+ {[%clk 0:00:53.5]} 1-0

[Event "Early-Titled-Tuesday-Blitz-February-06-2024"]
[Site "Chess.com"]
[Date "2024.02.06"]
[Round "2"]
[White "Kazan28"]
[Black "Rikikits"]
[Result "0-1"]
[WhiteElo "2580"]
[BlackElo "2834"]
[TimeControl "180+1"]
[EndTime "8:16:45 PST"]
[Termination "Rikikits won by resignation"]

1. e4 {[%clk 0:02:01.9]} 1... c6 {[%clk 0:03:00.9]} 2. Nf3 {[%clk 0:02:00.1]}
2... d5 {[%clk 0:02:45.2]} 3. d3 {[%clk 0:02:01]} 3... Qc7 {[%clk 0:02:44.7]} 4.
Nc3 {[%clk 0:01:58.4]} 4... dxe4 {[%clk 0:02:43.2]} 5. dxe4 {[%clk 0:01:59.3]}
5... e5 {[%clk 0:02:42]} 6. a4 {[%clk 0:01:59.9]} 6... Nf6 {[%clk 0:02:39.4]} 7.
Bc4 {[%clk 0:01:59.8]} 7... Bb4 {[%clk 0:02:39.3]} 8. O-O {[%clk 0:01:58.3]}
8... O-O {[%clk 0:02:39]} 9. Qe2 {[%clk 0:01:55.2]} 9... Bg4 {[%clk 0:02:35.5]}
10. h3 {[%clk 0:01:53.9]} 10... Bh5 {[%clk 0:02:11.8]} 11. Nd1 {[%clk
0:01:54.1]} 11... Nbd7 {[%clk 0:02:07.5]} 12. c3 {[%clk 0:01:48.4]} 12... Be7
{[%clk 0:02:07]} 13. Ne3 {[%clk 0:01:45.9]} 13... Nc5 {[%clk 0:02:02.9]} 14. Nf5
{[%clk 0:01:28.5]} 14... Ncxe4 {[%clk 0:02:02.2]} 15. Nxe7+ {[%clk 0:01:11.6]}
15... Qxe7 {[%clk 0:02:02.1]} 16. g4 {[%clk 0:01:09.2]} 16... Bg6 {[%clk
0:02:00.4]} 17. Re1 {[%clk 0:00:53.5]} 17... Rad8 {[%clk 0:01:56.2]} 18. Nh4
{[%clk 0:00:41.9]} 18... Nd6 {[%clk 0:01:42]} 19. Nxg6 {[%clk 0:00:40.4]} 19...
hxg6 {[%clk 0:01:41.5]} 20. Bb3 {[%clk 0:00:40.3]} 20... Rfe8 {[%clk 0:01:38.1]}
21. Bg5 {[%clk 0:00:40.5]} 21... Qc7 {[%clk 0:01:36]} 22. Qf3 {[%clk 0:00:36]}
22... Qb6 {[%clk 0:01:25.5]} 23. Ba2 {[%clk 0:00:30.8]} 23... e4 {[%clk
0:00:55.7]} 24. Qf4 {[%clk 0:00:30.9]} 24... Nd5 {[%clk 0:00:54.6]} 25. Bxd5
{[%clk 0:00:29.6]} 25... cxd5 {[%clk 0:00:55.5]} 26. Bxd8 {[%clk 0:00:29.5]}
26... Rxd8 {[%clk 0:00:56.4]} 27. Rad1 {[%clk 0:00:28.7]} 27... Nc4 {[%clk
0:00:54.7]} 28. b3 {[%clk 0:00:23.7]} 28... Nb2 {[%clk 0:00:54.9]} 29. Rd4
{[%clk 0:00:19.6]} 29... Nd3 {[%clk 0:00:54.9]} 30. Rxd3 {[%clk 0:00:16.6]}
30... exd3 {[%clk 0:00:55.8]} 31. b4 {[%clk 0:00:17.2]} 31... d4 {[%clk
0:00:53.3]} 32. Re7 {[%clk 0:00:12.2]} 32... Qf6 {[%clk 0:00:51.2]} 33. Qxf6
{[%clk 0:00:11.9]} 33... gxf6 {[%clk 0:00:51.3]} 0-1